[Event "1er Tournoi de GM du Barreau de Paris"]
[Site "Paris, France"]
[Date "2019.12.17"]
[Round "3.1"]
[White "LAMARD, Guillaume"]
[Black "FEDORCHUK, Sergey"]
[Result "0-1"]
[TimeControl "1h30+30s\cp"]
[WhiteTitle "FM"]
[BlackTitle "GM"]
[WhiteElo "2452"]
[BlackElo "2636"]

1. Nf3 {[%clk 01:30:55]} {[%emt 00:00:04]} Nf6 {[%clk 01:07:38]} {[%emt
00:23:15]} 2. c4 {[%clk 01:31:21]} {[%emt 00:00:12]} e6 {[%clk 01:05:21]}
{[%emt 00:02:47]} 3. g3 {[%clk 01:31:46]} {[%emt 00:00:05]} b6 {[%clk
01:04:46]} {[%emt 00:01:05]} 4. Bg2 {[%clk 01:32:04]} {[%emt 00:00:12]} Bb7
{[%clk 01:05:07]} {[%emt 00:00:09]} 5. O-O {[%clk 01:32:28]} {[%emt 00:00:06]}
Be7 {[%clk 01:05:12]} {[%emt 00:00:25]} 6. b3 {[%clk 01:32:37]} {[%emt
00:00:22]} O-O {[%clk 01:04:08]} {[%emt 00:01:33]} 7. Bb2 {[%clk 01:33:04]}
{[%emt 00:00:03]} d5 {[%clk 01:02:06]} {[%emt 00:02:31]} 8. e3 {[%clk
01:33:06]} {[%emt 00:00:29]} dxc4 {[%clk 00:56:07]} {[%emt 00:06:29]} 9. bxc4
{[%clk 01:33:30]} {[%emt 00:00:05]} c5 {[%clk 00:56:31]} {[%emt 00:00:06]} 10.
Nc3 {[%clk 01:33:28]} {[%emt 00:00:33]} Nc6 {[%clk 00:56:07]} {[%emt 00:00:54]}
11. Qe2 {[%clk 01:33:10]} {[%emt 00:00:48]} Qc7 {[%clk 00:50:23]} {[%emt
00:06:14]} 12. Rfd1 {[%clk 01:33:35]} {[%emt 00:00:06]} a6 {[%clk 00:45:42]}
{[%emt 00:05:10]} 13. Rab1 {[%clk 01:33:36]} {[%emt 00:00:29]} Rab8 {[%clk
00:43:01]} {[%emt 00:03:11]} 14. Ba1 {[%clk 01:33:55]} {[%emt 00:00:12]} Rfd8
{[%clk 00:41:21]} {[%emt 00:02:09]} 15. d3 {[%clk 01:31:52]} {[%emt 00:02:34]}
h6 {[%clk 00:38:49]} {[%emt 00:03:02]} 16. Ne1 {[%clk 01:30:55]} {[%emt
00:01:26]} Na7 {[%clk 00:37:30]} {[%emt 00:01:49]} 17. f4 {[%clk 01:23:25]}
{[%emt 00:08:00]} b5 {[%clk 00:31:36]} {[%emt 00:06:24]} 18. g4 {[%clk
01:15:17]} {[%emt 00:08:38]} b4 {[%clk 00:28:56]} {[%emt 00:03:11]} 19. Ne4
{[%clk 01:15:07]} {[%emt 00:00:40]} Nxe4 {[%clk 00:28:00]} {[%emt 00:01:25]} 20.
dxe4 {[%clk 01:14:14]} {[%emt 00:01:23]} Rxd1 {[%clk 00:27:58]} {[%emt
00:00:33]} 21. Rxd1 {[%clk 01:14:33]} {[%emt 00:00:10]} Rd8 {[%clk 00:28:12]}
{[%emt 00:00:15]} 22. Rxd8+ {[%clk 01:00:42]} {[%emt 00:14:22]} Qxd8 {[%clk
00:28:26]} {[%emt 00:00:16]} 23. Nd3 {[%emt 00:00:16]} Nc8 {[%clk 00:24:51]}
{[%emt 00:03:58]} 24. f5 {[%clk 00:59:34]} {[%emt 00:01:59]} Nb6 {[%clk
00:17:33]} {[%emt 00:07:48]} 25. Nf4 {[%clk 00:59:03]} {[%emt 00:01:01]} Bc8
{[%clk 00:14:26]} {[%emt 00:03:36]} 26. Nh5 {[%clk 00:51:53]} {[%emt 00:07:40]}
Bf8 {[%clk 00:14:08]} {[%emt 00:00:48]} 27. f6 {[%clk 00:49:30]} {[%emt
00:02:54]} g6 {[%clk 00:13:22]} {[%emt 00:01:16]} 28. Nf4 {[%clk 00:49:10]}
{[%emt 00:00:49]} a5 {[%clk 00:12:51]} {[%emt 00:01:01]} 29. Qc2 {[%clk
00:48:48]} {[%emt 00:00:52]} Ba6 {[%clk 00:08:36]} {[%emt 00:04:45]} 30. Bf1
{[%clk 00:49:14]} {[%emt 00:00:04]} Qd7 {[%clk 00:07:20]} {[%emt 00:01:46]} 31.
e5 {[%clk 00:35:18]} {[%emt 00:14:26]} Qa4 {[%clk 00:07:33]} {[%emt 00:00:16]}
32. Qb1 {[%clk 00:31:59]} {[%emt 00:03:49]} Bxc4 {[%clk 00:05:33]} {[%emt
00:02:30]} 33. Bxc4 {[%clk 00:23:57]} {[%emt 00:08:32]} Nxc4 {[%clk 00:05:59]}
{[%emt 00:00:04]} 34. Nxg6 {[%clk 00:24:19]} {[%emt 00:00:08]} Nxe3 {[%clk
00:05:38]} {[%emt 00:00:51]} 35. Ne7+ {[%clk 00:24:36]} {[%emt 00:00:13]} Kh8
{[%clk 00:04:45]} {[%emt 00:01:22]} 36. Qd3 {[%clk 00:24:35]} {[%emt 00:00:32]}
Qd1+ {[%clk 00:02:13]} {[%emt 00:03:02]} 37. Qxd1 {[%clk 00:24:30]} {[%emt
00:00:35]} Nxd1 {[%clk 00:02:39]} {[%emt 00:00:04]} 38. Kf1 {[%clk 00:23:58]}
{[%emt 00:01:01]} Ne3+ {[%clk 00:02:18]} {[%emt 00:00:50]} 39. Ke2 {[%clk
00:24:23]} {[%emt 00:00:05]} Nd5 {[%clk 00:02:02]} {[%emt 00:00:46]} 40. Nc6
{[%clk 00:23:52]} {[%emt 00:01:01]} a4 {[%clk 00:02:22]} {[%emt 00:00:10]} 41.
Kd3 {[%clk 00:20:46]} {[%emt 00:03:37]} a3 {[%clk 00:02:41]} {[%emt 00:00:11]}
42. h4 {[%clk 00:18:17]} {[%emt 00:02:58]} h5 {[%clk 00:02:47]} {[%emt
00:00:24]} 43. gxh5 {[%clk 00:17:31]} {[%emt 00:01:17]} Kh7 {[%clk 00:03:02]}
{[%emt 00:00:15]} 44. Nd8 {[%clk 00:17:38]} {[%emt 00:00:22]} Kg8 {[%clk
00:03:09]} {[%emt 00:00:23]} 45. Nc6 {[%clk 00:16:44]} {[%emt 00:01:25]} Nb6
{[%clk 00:03:19]} {[%emt 00:00:20]} 46. Nd8 {[%clk 00:15:46]} {[%emt 00:01:28]}
Bh6 {[%clk 00:03:05]} {[%emt 00:00:44]} 47. Nc6 {[%clk 00:12:36]} {[%emt
00:03:40]} Bf4 {[%clk 00:02:51]} {[%emt 00:00:43]} 48. Ke4 {[%clk 00:11:34]}
{[%emt 00:01:32]} Bc1 {[%clk 00:02:06]} {[%emt 00:01:16]} 49. Kd3 {[%clk
00:12:01]} {[%emt 00:00:03]} Bh6 {[%clk 00:02:16]} {[%emt 00:00:19]} 50. Nd8
{[%clk 00:11:46]} {[%emt 00:00:45]} c4+ {[%clk 00:02:34]} {[%emt 00:00:12]} 51.
Kc2 {[%clk 00:12:13]} {[%emt 00:00:03]} c3 {[%clk 00:02:37]} {[%emt 00:00:26]}
52. Bxc3 {[%clk 00:07:37]} {[%emt 00:05:07]} bxc3 {[%clk 00:02:58]} {[%emt
00:00:10]} 53. Kxc3 {[%clk 00:08:04]} {[%emt 00:00:03]} Bc1 {[%clk 00:02:21]}
{[%emt 00:01:06]} 54. Kd4 {[%clk 00:08:12]} {[%emt 00:00:21]} Nd5 {[%clk
00:02:10]} {[%emt 00:00:42]} 55. Nc6 {[%clk 00:08:01]} {[%emt 00:00:42]} Bb2+
{[%clk 00:02:08]} {[%emt 00:00:31]} 56. Kc4 {[%clk 00:08:06]} {[%emt 00:00:26]}
Ne3+ {[%clk 00:02:18]} {[%emt 00:00:20]} 57. Kd3 {[%clk 00:08:20]} {[%emt
00:00:16]} Nf5 {[%clk 00:01:02]} {[%emt 00:01:46]} 58. Ke4 {[%clk 00:08:17]}
{[%emt 00:00:34]} Nxh4 {[%clk 00:00:56]} {[%emt 00:00:35]} 59. Kf4 {[%clk
00:07:39]} {[%emt 00:01:08]} Bc1+ {[%clk 00:01:14]} {[%emt 00:00:12]} 60. Ke4
{[%clk 00:07:32]} {[%emt 00:00:37]} Ng2 {[%clk 00:01:10]} {[%emt 00:00:34]} 61.
Nd4 {[%clk 00:07:06]} {[%emt 00:00:56]} Ne1 {[%clk 00:00:55]} {[%emt 00:00:44]}
62. Nc6 {[%clk 00:06:44]} {[%emt 00:00:53]} Nc2 {[%clk 00:01:01]} {[%emt
00:00:24]} 63. Ne7+ {[%clk 00:06:34]} {[%emt 00:00:39]} Kh7 {[%clk 00:01:15]}
{[%emt 00:00:16]} 64. Nc6 {[%clk 00:07:01]} {[%emt 00:00:04]} Bh6 {[%clk
00:01:07]} {[%emt 00:00:37]} 65. Kd3 {[%clk 00:05:55]} {[%emt 00:01:37]} Ne3
{[%clk 00:01:23]} {[%emt 00:00:14]} 66. Nd8 {[%clk 00:06:19]} {[%emt 00:00:06]}
Kg8 {[%clk 00:01:46]} {[%emt 00:00:07]} 67. Nc6 {[%clk 00:06:44]} {[%emt
00:00:05]} Nf5 {[%clk 00:01:23]} {[%emt 00:00:53]} 68. Na5 {[%clk 00:07:06]}
{[%emt 00:00:09]} Ng3 {[%clk 00:01:06]} {[%emt 00:00:47]} 69. Nc4 {[%clk
00:07:28]} {[%emt 00:00:08]} Bf8 {[%clk 00:01:23]} {[%emt 00:00:12]} 70. Kc3
{[%clk 00:05:46]} {[%emt 00:02:12]} Nxh5 {[%clk 00:01:48]} {[%emt 00:00:05]} 71.
Kb3 {[%clk 00:06:14]} {[%emt 00:00:03]} Nf4 {[%clk 00:02:07]} {[%emt 00:00:10]}
72. Nxa3 {[%clk 00:06:40]} {[%emt 00:00:04]} Bxa3 {[%clk 00:02:18]} {[%emt
00:00:19]} 73. Kxa3 {[%clk 00:07:00]} {[%emt 00:00:11]} Nd3 {[%clk 00:02:44]}
{[%emt 00:00:04]} 0-1

[Event "1er Tournoi de GM du Barreau de Paris"]
[Site "Paris, France"]
[Date "2019.12.17"]
[Round "3.2"]
[White "DAVID, Alberto"]
[Black "MAURIZZI, Marc Andria"]
[Result "1/2-1/2"]
[TimeControl "1h30+30s\cp"]
[WhiteTitle "GM"]
[BlackTitle "IM"]
[WhiteElo "2545"]
[BlackElo "2404"]

1. c4 {[%clk 01:30:53]} {[%emt 00:00:06]} b6 {[%clk 01:30:48]} {[%emt
00:00:13]} 2. d4 {[%clk 01:30:13]} {[%emt 00:01:10]} Bb7 {[%clk 01:30:39]}
{[%emt 00:00:39]} 3. Nc3 {[%clk 01:30:07]} {[%emt 00:00:36]} e6 {[%clk
01:30:46]} {[%emt 00:00:22]} 4. a3 {[%clk 01:26:35]} {[%emt 00:04:03]} f5
{[%clk 01:30:36]} {[%emt 00:00:39]} 5. Bf4 {[%clk 01:23:08]} {[%emt 00:03:56]}
Nf6 {[%clk 01:30:16]} {[%emt 00:00:50]} 6. e3 {[%clk 01:23:32]} {[%emt
00:00:07]} g6 {[%clk 01:18:59]} {[%emt 00:11:47]} 7. Nf3 {[%clk 01:19:14]}
{[%emt 00:04:48]} Bg7 {[%clk 01:18:18]} {[%emt 00:01:11]} 8. Be2 {[%clk
01:18:16]} {[%emt 00:01:28]} O-O {[%clk 01:18:03]} {[%emt 00:00:45]} 9. O-O
{[%clk 01:10:43]} {[%emt 00:08:03]} Ne4 {[%clk 01:01:40]} {[%emt 00:16:53]} 10.
Nxe4 {[%clk 01:00:17]} {[%emt 00:10:56]} fxe4 {[%clk 00:58:21]} {[%emt
00:03:49]} 11. Nd2 {[%clk 00:59:21]} {[%emt 00:01:26]} Bxd4 {[%clk 00:50:12]}
{[%emt 00:08:39]} 12. Qc2 {[%clk 00:59:32]} {[%emt 00:00:19]} Bg7 {[%clk
00:46:12]} {[%emt 00:04:30]} 13. Nxe4 {[%clk 00:48:16]} {[%emt 00:11:46]} Nc6
{[%clk 00:43:21]} {[%emt 00:03:21]} 14. Bg3 {[%clk 00:41:32]} {[%emt 00:07:13]}
Ne7 {[%clk 00:40:42]} {[%emt 00:03:09]} 15. Rad1 {[%clk 00:32:34]} {[%emt
00:09:28]} Nf5 {[%clk 00:38:37]} {[%emt 00:02:36]} 16. b4 {[%clk 00:26:23]}
{[%emt 00:06:40]} Qe7 {[%clk 00:27:04]} {[%emt 00:12:03]} 17. c5 {[%clk
00:23:17]} {[%emt 00:03:37]} Bxe4 {[%clk 00:25:33]} {[%emt 00:02:00]} 18. Qxe4
{[%clk 00:23:42]} {[%emt 00:00:05]} bxc5 {[%clk 00:25:59]} {[%emt 00:00:04]} 19.
bxc5 {[%clk 00:23:33]} {[%emt 00:00:39]} d5 {[%clk 00:26:04]} {[%emt 00:00:26]}
20. cxd6 {[%clk 00:23:10]} {[%emt 00:00:53]} cxd6 {[%clk 00:26:29]} {[%emt
00:00:04]} 21. Rb1 {[%clk 00:17:32]} {[%emt 00:06:08]} d5 {[%clk 00:24:58]}
{[%emt 00:02:02]} 22. Qa4 {[%clk 00:16:05]} {[%emt 00:01:56]} Nxg3 {[%clk
00:24:26]} {[%emt 00:01:02]} 23. hxg3 {[%clk 00:16:28]} {[%emt 00:00:07]} Rab8
{[%clk 00:22:11]} {[%emt 00:02:47]} 24. Rb3 {[%clk 00:11:38]} {[%emt 00:05:19]}
Rxb3 {[%clk 00:21:20]} {[%emt 00:01:22]} 25. Qxb3 {[%clk 00:12:04]} {[%emt
00:00:04]} Be5 {[%clk 00:20:48]} {[%emt 00:01:01]} 1/2-1/2

[Event "1er Tournoi de GM du Barreau de Paris"]
[Site "Paris, France"]
[Date "2019.12.17"]
[Round "3.3"]
[White "SOCHACKI, Wojtek"]
[Black "GULIYEV, Namig"]
[Result "0-1"]
[TimeControl "1h30+30s\cp"]
[WhiteTitle "IM"]
[BlackTitle "GM"]
[WhiteElo "2320"]
[BlackElo "2548"]

1. e4 {[%clk 01:30:56]} {[%emt 00:00:02]} c5 {[%clk 01:30:55]} {[%emt
00:00:06]} 2. Nf3 {[%clk 01:31:22]} {[%emt 00:00:05]} d6 {[%clk 01:31:16]}
{[%emt 00:00:09]} 3. d4 {[%clk 01:31:47]} {[%emt 00:00:05]} cxd4 {[%clk
01:31:37]} {[%emt 00:00:09]} 4. Qxd4 {[%clk 01:32:12]} {[%emt 00:00:05]} Nf6
{[%clk 01:32:02]} {[%emt 00:00:05]} 5. c4 {[%clk 01:29:36]} {[%emt 00:03:06]}
Nc6 {[%clk 01:32:19]} {[%emt 00:00:13]} 6. Qe3 {[%clk 01:29:06]} {[%emt
00:01:00]} Bg4 {[%clk 01:32:10]} {[%emt 00:00:38]} 7. Nbd2 {[%clk 01:22:44]}
{[%emt 00:06:52]} g6 {[%clk 01:31:37]} {[%emt 00:01:03]} 8. Be2 {[%clk
01:22:19]} {[%emt 00:00:54]} Bg7 {[%clk 01:31:55]} {[%emt 00:00:12]} 9. O-O
{[%clk 01:22:33]} {[%emt 00:00:16]} O-O {[%clk 01:32:07]} {[%emt 00:00:19]} 10.
h3 {[%clk 01:22:14]} {[%emt 00:00:49]} Bxf3 {[%clk 01:31:45]} {[%emt 00:00:52]}
11. Nxf3 {[%clk 01:22:02]} {[%emt 00:00:42]} Nd7 {[%clk 01:31:40]} {[%emt
00:00:36]} 12. Rb1 {[%clk 01:21:10]} {[%emt 00:01:22]} a5 {[%clk 01:30:54]}
{[%emt 00:01:16]} 13. b3 {[%clk 01:19:39]} {[%emt 00:02:02]} Qb6 {[%clk
01:29:46]} {[%emt 00:01:38]} 14. Qxb6 {[%clk 00:58:25]} {[%emt 00:21:44]} Nxb6
{[%clk 01:30:04]} {[%emt 00:00:13]} 15. a3 {[%clk 00:50:22]} {[%emt 00:08:33]}
Nd7 {[%clk 01:27:52]} {[%emt 00:02:41]} 16. Rd1 {[%clk 00:49:27]} {[%emt
00:01:25]} Nc5 {[%clk 01:27:55]} {[%emt 00:00:27]} 17. Bd3 {[%clk 00:49:36]}
{[%emt 00:00:21]} Nd4 {[%clk 01:17:21]} {[%emt 00:11:04]} 18. Nxd4 {[%clk
00:49:44]} {[%emt 00:00:23]} Bxd4 {[%clk 01:17:46]} {[%emt 00:00:05]} 19. Bc2
{[%clk 00:33:19]} {[%emt 00:16:55]} e5 {[%clk 01:18:04]} {[%emt 00:00:11]} 20.
Kf1 {[%clk 00:33:36]} {[%emt 00:00:12]} Kg7 {[%clk 01:17:37]} {[%emt 00:00:57]}
21. Ke2 {[%clk 00:33:44]} {[%emt 00:00:22]} Rfc8 {[%clk 01:16:46]} {[%emt
00:01:21]} 22. a4 {[%clk 00:30:18]} {[%emt 00:03:56]} Ne6 {[%clk 01:13:32]}
{[%emt 00:03:42]} 23. Be3 {[%clk 00:30:02]} {[%emt 00:00:47]} Bxe3 {[%clk
01:13:26]} {[%emt 00:00:36]} 24. fxe3 {[%clk 00:28:26]} {[%emt 00:02:06]} Ra6
{[%clk 01:13:16]} {[%emt 00:00:40]} 25. Kd3 {[%clk 00:28:13]} {[%emt 00:00:43]}
h5 {[%clk 01:13:23]} {[%emt 00:00:24]} 26. Kc3 {[%clk 00:21:53]} {[%emt
00:06:49]} h4 {[%clk 01:13:09]} {[%emt 00:00:44]} 27. Rd2 {[%clk 00:22:07]}
{[%emt 00:00:17]} Kf6 {[%clk 01:12:56]} {[%emt 00:00:42]} 28. Rf1+ {[%clk
00:15:47]} {[%emt 00:06:50]} Ke7 {[%clk 01:13:17]} {[%emt 00:00:09]} 29. Rdf2
{[%clk 00:16:13]} {[%emt 00:00:05]} Rf8 {[%clk 01:13:34]} {[%emt 00:00:12]} 30.
Rb1 {[%clk 00:15:44]} {[%emt 00:00:59]} Nc5 {[%clk 01:13:46]} {[%emt 00:00:17]}
31. Rbf1 {[%clk 00:14:06]} {[%emt 00:02:09]} f6 {[%clk 01:13:38]} {[%emt
00:00:39]} 32. Rf3 {[%clk 00:14:12]} {[%emt 00:00:24]} Rf7 {[%clk 01:13:22]}
{[%emt 00:00:45]} 33. R3f2 {[%clk 00:12:47]} {[%emt 00:01:56]} Ra8 {[%clk
01:13:41]} {[%emt 00:00:10]} 34. Rd2 {[%clk 00:13:06]} {[%emt 00:00:12]} Ke6
{[%clk 01:13:05]} {[%emt 00:01:05]} 35. Rfd1 {[%clk 00:09:36]} {[%emt
00:04:01]} Rd7 {[%clk 01:13:27]} {[%emt 00:00:08]} 36. Rd5 {[%clk 00:09:54]}
{[%emt 00:00:13]} Rh8 {[%clk 01:13:20]} {[%emt 00:00:36]} 37. R1d2 {[%clk
00:10:13]} {[%emt 00:00:12]} Rh5 {[%clk 01:12:57]} {[%emt 00:00:52]} 38. b4
{[%clk 00:08:46]} {[%emt 00:01:58]} axb4+ {[%clk 01:13:19]} {[%emt 00:00:08]}
39. Kxb4 {[%clk 00:09:13]} {[%emt 00:00:03]} Rg5 {[%clk 01:13:38]} {[%emt
00:00:11]} 40. Kb5 {[%clk 00:08:05]} {[%emt 00:01:38]} Rg3 {[%clk 01:13:18]}
{[%emt 00:00:49]} 41. Re2 {[%clk 00:08:31]} {[%emt 00:00:05]} Rc7 {[%clk
01:13:06]} {[%emt 00:00:42]} 42. a5 {[%clk 00:07:49]} {[%emt 00:01:12]} Rc6
{[%clk 01:13:14]} {[%emt 00:00:22]} 43. Rd1 {[%clk 00:06:39]} {[%emt 00:01:40]}
Rg5 {[%clk 01:11:26]} {[%emt 00:02:16]} 44. Rf2 {[%clk 00:07:00]} {[%emt
00:00:10]} Rc7 {[%clk 01:10:39]} {[%emt 00:01:17]} 45. Kb6 {[%clk 00:06:34]}
{[%emt 00:00:57]} Rf7 {[%clk 01:09:55]} {[%emt 00:01:14]} 46. Rxd6 {[%clk
00:06:27]} {[%emt 00:00:37]} Kxd6 {[%clk 01:09:54]} {[%emt 00:00:30]} 47. Rd2
{[%clk 00:06:55]} {[%emt 00:00:03]} Ke6 {[%clk 01:09:36]} {[%emt 00:00:47]} 48.
Kxc5 {[%clk 00:07:23]} {[%emt 00:00:01]} Rd7 {[%clk 01:09:49]} {[%emt
00:00:17]} 49. Re2 {[%clk 00:06:02]} {[%emt 00:01:52]} f5 {[%clk 01:09:24]}
{[%emt 00:00:55]} 50. Kb6 {[%clk 00:05:24]} {[%emt 00:01:08]} f4 {[%clk
01:09:40]} {[%emt 00:00:14]} 51. c5 {[%clk 00:05:43]} {[%emt 00:00:11]} Rg3
{[%clk 01:08:21]} {[%emt 00:01:49]} 52. Bb3 {[%clk 00:04:45]} {[%emt 00:01:28]}
Ke7 {[%clk 01:07:19]} {[%emt 00:01:32]} 53. Bd5 {[%clk 00:05:07]} {[%emt
00:00:09]} Rxe3 {[%clk 01:07:31]} {[%emt 00:00:17]} 54. Rb2 {[%clk 00:05:32]}
{[%emt 00:00:05]} f3 {[%clk 01:06:45]} {[%emt 00:01:16]} 55. gxf3 {[%clk
00:05:35]} {[%emt 00:00:28]} Rxf3 {[%clk 01:06:51]} {[%emt 00:00:24]} 56. Bxb7
{[%clk 00:06:00]} {[%emt 00:00:05]} Rxh3 {[%clk 01:06:10]} {[%emt 00:01:11]} 57.
Bc8 {[%clk 00:03:22]} {[%emt 00:03:07]} Rd8 {[%clk 01:06:03]} {[%emt 00:00:37]}
58. Kc7 {[%clk 00:03:26]} {[%emt 00:00:27]} Rc3 {[%clk 01:05:42]} {[%emt
00:00:51]} 59. c6 {[%clk 00:02:45]} {[%emt 00:01:11]} Rxc6+ {[%clk 01:03:52]}
{[%emt 00:02:20]} 60. Kxc6 {[%clk 00:03:11]} {[%emt 00:00:04]} Rxc8+ {[%clk
01:04:19]} {[%emt 00:00:04]} 61. Kd5 {[%clk 00:02:05]} {[%emt 00:01:37]} Kf6
{[%clk 01:04:37]} {[%emt 00:00:11]} 62. Rf2+ {[%clk 00:02:07]} {[%emt
00:00:28]} Kg5 {[%clk 01:05:02]} {[%emt 00:00:05]} 63. Rg2 {[%clk 00:02:02]}
{[%emt 00:00:36]} Kh5 {[%clk 01:05:22]} {[%emt 00:00:09]} 64. a6 {[%clk
00:02:15]} {[%emt 00:00:17]} g5 {[%clk 01:03:05]} {[%emt 00:02:47]} 65. Kxe5
{[%clk 00:02:42]} {[%emt 00:00:03]} Re8+ {[%clk 01:03:04]} {[%emt 00:00:30]} 66.
Kf6 {[%clk 00:02:40]} {[%emt 00:00:33]} Rf8+ {[%clk 01:03:25]} {[%emt
00:00:09]} 67. Ke6 {[%clk 00:02:51]} {[%emt 00:00:18]} h3 {[%clk 01:03:21]}
{[%emt 00:00:34]} 68. Rb2 {[%clk 00:03:10]} {[%emt 00:00:12]} Ra8 {[%clk
01:01:52]} {[%emt 00:01:59]} 69. Ra2 {[%clk 00:03:33]} {[%emt 00:00:07]} g4
{[%clk 01:02:05]} {[%emt 00:00:17]} 70. Ra3 {[%clk 00:00:37]} {[%emt 00:03:27]}
h2 {[%clk 01:02:21]} {[%emt 00:00:14]} 71. Ra1 {[%clk 00:01:04]} {[%emt
00:00:03]} g3 {[%clk 01:02:34]} {[%emt 00:00:17]} 72. Rh1 {[%clk 00:01:25]}
{[%emt 00:00:08]} Kg4 {[%clk 01:02:54]} {[%emt 00:00:09]} 0-1

[Event "1er Tournoi de GM du Barreau de Paris"]
[Site "Paris, France"]
[Date "2019.12.17"]
[Round "3.4"]
[White "LOISEAU, Quentin"]
[Black "RAKOTOMAHARO, Fy Antenaina"]
[Result "1/2-1/2"]
[TimeControl "1h30+30s\cp"]
[WhiteTitle "IM"]
[BlackTitle "IM"]
[WhiteElo "2470"]
[BlackElo "2438"]

1. Nf3 {[%clk 01:30:38]} {[%emt 00:00:20]} d5 {[%clk 01:30:52]} {[%emt
00:00:09]} 2. d4 {[%clk 01:30:41]} {[%emt 00:00:26]} Nf6 {[%clk 01:31:17]}
{[%emt 00:00:06]} 3. c4 {[%clk 01:31:01]} {[%emt 00:00:10]} e6 {[%clk
01:31:42]} {[%emt 00:00:05]} 4. g3 {[%clk 01:31:08]} {[%emt 00:00:22]} Bb4+
{[%clk 01:31:10]} {[%emt 00:01:03]} 5. Bd2 {[%clk 01:31:33]} {[%emt 00:00:06]}
Be7 {[%clk 01:31:32]} {[%emt 00:00:08]} 6. Bg2 {[%clk 01:31:57]} {[%emt
00:00:05]} O-O {[%clk 01:31:50]} {[%emt 00:00:12]} 7. O-O {[%clk 01:32:14]}
{[%emt 00:00:13]} Nbd7 {[%clk 01:31:51]} {[%emt 00:00:29]} 8. Bf4 {[%clk
01:30:46]} {[%emt 00:01:58]} b6 {[%clk 01:23:44]} {[%emt 00:08:37]} 9. Nc3
{[%clk 01:29:45]} {[%emt 00:01:31]} Bb7 {[%clk 01:23:56]} {[%emt 00:00:18]} 10.
Ne5 {[%clk 01:27:28]} {[%emt 00:02:47]} c6 {[%clk 01:17:51]} {[%emt 00:06:35]}
11. h4 {[%clk 01:20:59]} {[%emt 00:06:59]} a5 {[%clk 01:05:30]} {[%emt
00:12:51]} 12. e4 {[%clk 01:15:58]} {[%emt 00:05:31]} dxc4 {[%clk 00:57:32]}
{[%emt 00:08:28]} 13. Nxc4 {[%clk 01:10:33]} {[%emt 00:05:54]} Ba6 {[%clk
00:57:55]} {[%emt 00:00:08]} 14. b3 {[%clk 01:09:34]} {[%emt 00:01:28]} b5
{[%clk 00:38:31]} {[%emt 00:19:55]} 15. Ne3 {[%clk 01:02:56]} {[%emt 00:07:07]}
b4 {[%clk 00:37:09]} {[%emt 00:01:52]} 16. Ne2 {[%clk 01:03:00]} {[%emt
00:00:26]} Nh5 {[%clk 00:37:18]} {[%emt 00:00:22]} 17. Nc4 {[%clk 00:53:44]}
{[%emt 00:09:45]} Nxf4 {[%clk 00:36:21]} {[%emt 00:01:27]} 18. Nxf4 {[%clk
00:54:09]} {[%emt 00:00:04]} Bxc4 {[%clk 00:26:49]} {[%emt 00:10:02]} 19. bxc4
{[%clk 00:54:37]} {[%emt 00:00:02]} e5 {[%clk 00:27:14]} {[%emt 00:00:05]} 20.
Nd3 {[%clk 00:53:54]} {[%emt 00:01:13]} exd4 {[%clk 00:26:57]} {[%emt
00:00:47]} 21. e5 {[%clk 00:54:17]} {[%emt 00:00:07]} Qb6 {[%clk 00:23:27]}
{[%emt 00:04:00]} 22. Re1 {[%clk 00:45:46]} {[%emt 00:09:01]} Nc5 {[%clk
00:22:03]} {[%emt 00:01:54]} 23. Be4 {[%clk 00:44:08]} {[%emt 00:02:07]} Nxe4
{[%clk 00:12:36]} {[%emt 00:09:57]} 24. Rxe4 {[%clk 00:44:36]} {[%emt
00:00:02]} a4 {[%clk 00:13:02]} {[%emt 00:00:04]} 25. Rb1 {[%clk 00:43:46]}
{[%emt 00:01:20]} b3 {[%clk 00:12:29]} {[%emt 00:01:03]} 26. axb3 {[%clk
00:42:59]} {[%emt 00:01:16]} a3 {[%clk 00:12:56]} {[%emt 00:00:04]} 27. Qc2
{[%clk 00:42:14]} {[%emt 00:01:15]} Rfb8 {[%clk 00:10:14]} {[%emt 00:03:12]} 28.
c5 {[%clk 00:40:56]} {[%emt 00:01:48]} Qb5 {[%clk 00:10:31]} {[%emt 00:00:13]}
29. b4 {[%clk 00:40:53]} {[%emt 00:00:34]} a2 {[%clk 00:04:06]} {[%emt
00:06:55]} 30. Ra1 {[%clk 00:40:42]} {[%emt 00:00:42]} Ra3 {[%clk 00:03:40]}
{[%emt 00:00:56]} 31. Rxd4 {[%clk 00:40:32]} {[%emt 00:00:39]} Rd8 {[%clk
00:04:07]} {[%emt 00:00:03]} 32. Rxd8+ Bxd8 {[%clk 00:04:36]} 33. Nf4 {[%clk
00:28:40]} {[%emt 00:02:56]} Qxb4 {[%clk 00:02:42]} {[%emt 00:02:24]} 34. Rxa2
{[%clk 00:26:39]} {[%emt 00:02:31]} Qe1+ {[%clk 00:01:59]} {[%emt 00:01:12]} 35.
Kh2 {[%clk 00:25:43]} {[%emt 00:01:26]} Rxa2 {[%clk 00:02:23]} {[%emt
00:00:06]} 36. Qxa2 {[%clk 00:26:10]} {[%emt 00:00:03]} Qxe5 {[%clk 00:02:44]}
{[%emt 00:00:09]} 37. Qa8 {[%clk 00:26:16]} {[%emt 00:00:25]} Qe8 {[%clk
00:01:44]} {[%emt 00:01:30]} 38. Nd3 {[%clk 00:26:15]} {[%emt 00:00:31]} Kf8
{[%clk 00:02:06]} {[%emt 00:00:08]} 39. Nb4 {[%clk 00:19:32]} {[%emt 00:07:13]}
Be7 {[%clk 00:02:27]} {[%emt 00:00:09]} 40. Qa7 {[%clk 00:19:59]} {[%emt
00:00:04]} Qc8 {[%clk 00:02:12]} {[%emt 00:00:46]} 41. Qb6 {[%clk 00:18:28]}
{[%emt 00:02:01]} g5 {[%clk 00:01:13]} {[%emt 00:01:28]} 42. Nxc6 {[%clk
00:15:04]} {[%emt 00:03:53]} Qf5 {[%clk 00:01:18]} {[%emt 00:00:25]} 43. Qb8+
{[%clk 00:02:52]} {[%emt 00:12:42]} Kg7 {[%clk 00:01:44]} {[%emt 00:00:04]} 44.
Qg8+ {[%clk 00:02:30]} {[%emt 00:00:52]} Kh6 {[%clk 00:02:07]} {[%emt
00:00:07]} 45. hxg5+ {[%clk 00:01:24]} {[%emt 00:01:36]} Bxg5 {[%clk 00:00:35]}
{[%emt 00:02:02]} 46. Qf8+ {[%clk 00:01:36]} {[%emt 00:00:19]} Kh5 {[%clk
00:00:59]} {[%emt 00:00:06]} 47. Kg1 {[%clk 00:01:31]} {[%emt 00:00:35]} Qb1+
{[%clk 00:01:19]} {[%emt 00:00:09]} 48. Kh2 {[%clk 00:01:56]} {[%emt 00:00:05]}
Qf5 {[%clk 00:01:45]} {[%emt 00:00:05]} 49. Kg1 {[%clk 00:00:39]} {[%emt
00:01:47]} Qb1+ {[%clk 00:02:05]} {[%emt 00:00:10]} 50. Kh2 {[%clk 00:00:45]}
{[%emt 00:00:24]} 1/2-1/2